[Event "ECo-C Extraliga 2023-24"]
[Site "Slovakia"]
[Date "2024.02.25"]
[Round "8.5"]
[White "Varga, Zoltan"]
[Black "Karas, Marek"]
[Result "1/2-1/2"]
[ECO "A13"]
[WhiteElo "2366"]
[BlackElo "2244"]
[Annotator "TA"]
[PlyCount "201"]
[EventDate "2023.10.06"]
[EventType "team-tourn"]
[EventCountry "SVK"]
[SourceTitle "playchess.com"]
[Source "ChessBase"]
[SourceQuality "1"]
[TimeControl "40/5400+30:1800+30"]

{[%evp 77,201,60,60,60,60,60,60,60,59,60,184,178,178,149,151,80,80,80,80,80,184,184,177,170,170,170,350,170,141,125,80,80,80,80,80,80,80,80,80,80,85,80,222,229,310,263,387,355,322,173,262,0,140,79,74,0,74,59,59,59,59,59,110,85,59,45,18,45,45,45,45,45,1029,1202,976,949,1645,1609,4133,957,5431,1580,3074,5173,5065,2228,5110,1485,1445,1405,1328,1271,1288,1265,1151,1120,957,0,861,718,756,331,372,0,110,110,110,110,111,8,8,8,8,8,8,8,8,8,8,8,8,8,8,8,8,8]} 1. Nf3 {[%emt 0:00:04]} d5 {[%emt 0:00:11]} 2. c4 {[%emt 0:00:21]} e6 {[%emt 0:00:47]} 3. g3 {[%emt 0:00:33]} Nf6 {[%emt 0:00:09]} 4. Bg2 {[%emt 0:00:04]} Be7 {[%emt 0:00:10]} 5. d4 {[%emt 0:00:29]} O-O {[%emt 0:00:17]} 6. Nbd2 {[%emt 0:01:03]} c5 {[%emt 0:04:01]} 7. cxd5 {[%emt 0:01:19]} exd5 {[%emt 0:00:28]} 8. dxc5 {[%emt 0:00:28]} Bxc5 {[%emt 0:00:13]} 9. O-O {[%emt 0:00:21]} Nc6 {[%emt 0:00:50]} 10. Nb3 {[%emt 0:02:07]} Bb6 {[%emt 0:00:29]} 11. Bf4 {[%emt 0:01:53] D30: Damengambit (ohne Sc3).} Re8 {[%emt 0:03:39]} 12. Nbd4 {[%emt 0:16:58]} Nxd4 {[%emt 0:06:25]} 13. Nxd4 {[%emt 0:01:18]} Bg4 {[%emt 0:03:33]} 14. h3 {[%emt 0:04:00]} Bxd4 $146 {[%emt 0:02:01]} ({Predecessor:} 14... Bd7 15. Bg5 Rb8 16. e3 h6 17. Bxf6 Qxf6 18. Qd2 Bxd4 {½-½ Taimanov,M-Spassky,B URS-ch28 Final & Zonal 1961 (11)}) 15. Qxd4 {[%emt 0:07:23]} Bxe2 {[%emt 0:00:21]} 16. Rfe1 {[%emt 0:00:02]} Qb6 {[%emt 0:06:03]} 17. Be5 {[%emt 0:10:16]} Qxd4 {[%emt 0:02:03]} 18. Bxd4 {[%emt 0:00:40]} b6 {[%emt 0:04:01]} 19. Rac1 {[%emt 0:06:23]} Bd3 {[%emt 0:04:34]} 20. Red1 {[%emt 0:12:43]} Be4 {[%emt 0:02:31]} 21. f3 {[%emt 0:00:49]} Bf5 {[%emt 0:00:36]} 22. g4 {[%emt 0:00:30]} Be6 {[%emt 0:01:33]} 23. f4 {[%emt 0:03:26]} Rac8 {[%emt 0:01:26]} 24. f5 {[%emt 0:00:49]} Bd7 {[%emt 0:03:15]} 25. Bxf6 {[%emt 0:01:06]} gxf6 {[%emt 0:00:18]} 26. Bxd5 {[%emt 0:00:04]} Rxc1 {[%emt 0:01:08]} 27. Rxc1 {[%emt 0:00:05]} Rc8 {[%emt 0:00:21]} 28. Rxc8+ {[%emt 0:02:46]} Bxc8 {[%emt 0:00:06]} 29. Kf2 {[%emt 0:00:02]} h5 {[%emt 0:00:30]} 30. Kg3 {[%emt 0:00:41]} hxg4 {[%emt 0:00:13]} 31. Kxg4 {[%emt 0:00:02]} Kg7 {[%emt 0:00:52]} 32. h4 {[%emt 0:00:37]} Bd7 {[%emt 0:00:34]} 33. Kf4 {[%emt 0:00:14]} Be8 {[%emt 0:00:56]} 34. b4 {[%emt 0:05:12]} Ba4 {[%emt 0:02:26]} 35. a3 {[%emt 0:00:24]} Bd1 {[%emt 0:01:03]} 36. Bc4 {[%emt 0:02:09]} Kf8 {[%emt 0:00:27]} 37. Ke4 {[%emt 0:03:38]} Ke7 {[%emt 0:02:34]} 38. Bd5 {[%emt 0:09:24]} Bc2+ {[%emt 0:04:22]} 39. Kf4 {[%emt 0:00:07]} Kf8 {[%emt 0:00:33]} 40. Bc6 {[%emt 0:04:32]} Bd1 {[%emt 0:02:25]} 41. Be4 {[%emt 0:34:14]} Kg7 {[%emt 0:31:18]} 42. Bd3 {[%emt 0:00:00]} Kf8 {[%emt 0:00:00]} 43. Ke4 {[%emt 0:00:00]} Ke7 {[%emt 0:00:00]} (43... Bb3 $1 $14) 44. Kd5 $18 {[%emt 0:00:00]} Kd7 {[%emt 0:00:00]} 45. Bb5+ {[%emt 0:00:00]} Kc7 {[%emt 0:00:00]} 46. a4 {[%emt 0:00:00]} ({Günstiger ist} 46. Bc4 $1) 46... Bf3+ $16 {[%emt 0:00:00]} 47. Kd4 {[%emt 0:00:00]} Kd6 {[%emt 0:00:00]} 48. a5 {[%emt 0:00:00]} Ke7 {[%emt 0:00:00]} (48... Bg4 $16 {ist wohl besser.}) 49. Bd3 $18 {[%emt 0:00:00]} Kd6 {[%emt 0:00:00]} 50. Bc4 {[%emt 0:00:00]} Ke7 {[%emt 0:00:00]} 51. Ke3 {[%emt 0:00:00]} Bd1 $2 {[%emt 0:00:00]} (51... Bg4) 52. Ke4 {[%emt 0:00:00]} (52. Be2 $142 {Beabsichtigt axb6 und Matt.} Bc2 53. Bg4) 52... Bh5 {[%emt 0:00:00]} 53. Kd5 {[%emt 0:00:00]} Bf3+ {[%emt 0:00:00]} 54. Kd4 {[%emt 0:00:00]} Bh5 {[%emt 0:00:00]} 55. Bd5 {[%emt 0:00:00]} Bg4 {[%emt 0:03:06]} 56. Ke4 {[%emt 0:00:00]} Bh5 {[%emt 0:00:40]} 57. Kf4 {[%emt 0:00:00]} Bd1 {[%emt 0:02:40]} 58. Bf3 {[%emt 0:00:00]} Bc2 {[%emt 0:00:28]} 59. Bg4 {[%emt 0:00:00]} Ba4 {[%emt 0:03:08]} (59... Kd6 $16) 60. Ke4 {[%emt 0:00:00]} Bc6+ {[%emt 0:03:33]} 61. Ke3 {[%emt 0:00:00]} Bd7 {[%emt 0:01:42]} (61... Kf8 $142 62. Be2 Ke8) 62. Kd4 $18 {[%emt 0:00:59]} Bc6 {[%emt 0:00:35]} 63. Be2 {[%emt 0:00:27]} Bg2 {[%emt 0:02:38]} (63... Bb7 {kämpft weiter.} 64. axb6 axb6) 64. Bc4 {[%emt 0:00:36]} (64. h5 $18) 64... Bf3 $1 $16 {[%emt 0:01:39]} 65. Ba2 $1 {[%emt 0:01:13]} Bh5 {[%emt 0:02:44]} 66. Bc4 {[%emt 0:02:03]} Bf3 $1 {[%emt 0:00:24]} 67. axb6 {[%emt 0:03:14]} axb6 {[%emt 0:00:11]} 68. Bd5 {[%emt 0:00:07]} Bh5 {[%emt 0:02:01]} 69. Ke4 {[%emt 0:00:16]} Bd1 {[%emt 0:01:16]} ({Besser ist} 69... Be2 $1 $14) 70. Bc4 $1 $16 {[%emt 0:00:04]} Bh5 {[%emt 0:00:32]} 71. Kd5 {[%emt 0:00:48]} Bf3+ {[%emt 0:00:19]} 72. Kd4 {[%emt 0:00:01]} Bh5 {[%emt 0:01:02]} 73. Bd3 {[%emt 0:01:07]} Kd6 {[%emt 0:06:04]} 74. Kc4 {[%emt 0:01:19]} Bg4 $2 {[%emt 0:04:06][%mdl 8192]} (74... Kc6 $14) 75. Kb5 $18 {[%emt 0:00:06]} Kc7 {[%emt 0:00:07]} 76. Bc4 {[%emt 0:02:33]} Bxf5 {[%emt 0:00:56]} 77. h5 $1 {[%emt 0:00:04]} Bg4 {[%emt 0:04:19]} 78. h6 {[%emt 0:00:14]} (78. Bxf7 $142 Kb7 79. Kc4) 78... Bf5 {[%emt 0:00:16]} 79. Bxf7 {[%emt 0:00:34]} Bd3+ {[%emt 0:00:21]} 80. Bc4 {[%emt 0:00:11]} Bh7 {[%emt 0:00:17]} 81. Be2 {[%emt 0:00:30]} (81. Bf1 $142 Bg6 82. Kc4) 81... Kb7 {[%emt 0:00:57]} 82. Bf3+ {[%emt 0:01:24]} (82. Kc4 $142 Kc6 83. Kd4) 82... Kc7 $18 {[%emt 0:00:06]} 83. Ka6 {[%emt 0:01:35]} Bd3+ {[%emt 0:01:23] [#]} 84. Ka7 $1 {[%emt 0:00:45]} Bh7 {[%emt 0:01:12]} 85. Be2 {[%emt 0:00:57]} Bg6 {[%emt 0:01:22]} 86. Bh5 {[%emt 0:00:28]} Bh7 {[%emt 0:00:57]} 87. Be2 {[%emt 0:01:12]} Bg6 {[%emt 0:00:08]} 88. Ka6 {[%emt 0:00:11]} Kc6 {[%emt 0:00:50]} 89. Bf3+ {[%emt 0:00:04]} (89. Bb5+ $142 Kc7 90. Bc4) 89... Kc7 $18 {[%emt 0:00:06]} 90. Kb5 $2 {[%emt 0:00:06]} (90. Bd5 $18 {jetzt Bg8 und aus.} Bd3+ 91. Ka7) 90... Bd3+ {[%emt 0:00:11]} (90... Bh7 $1 $11) 91. Ka4 $16 {[%emt 0:00:03]} Bc2+ {[%emt 0:00:39]} 92. Ka3 {[%emt 0:00:05]} Kd6 {[%emt 0:00:22] [#]} 93. Kb2 {[%emt 0:00:03]} (93. Bd1 $1 $16 {[%cal Rd1c2]} Bd3 (93... Bxd1 $2 {verliert.} 94. h7 $18) 94. Ka4) 93... Bh7 $11 {[%emt 0:00:09]} 94. Kc3 {[%emt 0:00:05]} Ke5 {[%emt 0:04:23]} 95. Kc4 {[%emt 0:00:03]} Kf4 {[%emt 0:00:26]} 96. Be2 {[%emt 0:00:34]} Kg5 {[%emt 0:00:16]} 97. Kb5 {[%emt 0:00:03]} Kxh6 {[%emt 0:00:11]} 98. Kxb6 {[%emt 0:00:03]} Bg6 {[%emt 0:00:22]} 99. Kc5 {[%emt 0:01:14]} Be8 {[%emt 0:00:17]} 100. b5 {[%emt 0:00:16]} Bxb5 $1 {[%emt 0:00:09]} 101. Bxb5 {[%emt 0:00:05]} 1/2-1/2

[Event "ECo-C Extraliga 2023-24"]
[Site "Slovakia"]
[Date "2024.02.25"]
[Round "8.5"]
[White "Farkas, Gabor"]
[Black "Kusiak, Matej"]
[Result "1-0"]
[ECO "C60"]
[WhiteElo "2279"]
[BlackElo "2250"]
[Annotator "TA"]
[PlyCount "69"]
[EventDate "2023.10.06"]
[EventType "team-tourn"]
[EventCountry "SVK"]
[SourceTitle "playchess.com"]
[Source "ChessBase"]
[SourceQuality "1"]
[TimeControl "40/5400+30:1800+30"]

{[%evp 9,69,33,35,39,31,34,31,28,85,100,106,92,92,66,65,50,57,58,55,53,87,95,190,193,209,189,206,216,374,404,373,391,390,394,397,325,400,393,398,380,423,408,397,386,378,406,387,400,459,445,724,380,856,856,1012,977,29979,29980,29979,29981,29981,29981]} 1. e4 {[%emt 0:00:03]} e5 {[%emt 0:00:46]} 2. Nf3 {[%emt 0:00:29]} Nc6 {[%emt 0:00:07]} 3. Bb5 {[%emt 0:01:04]} Nge7 {[%emt 0:03:40]} 4. c3 {[%emt 0:04:39][%cal Bc2c3,Bc3d4,Bd4d5][%mdl 32]} a6 {[%emt 0:03:52]} 5. Ba4 {[%emt 0:02:04]} g6 {[%emt 0:01:13]} 6. d4 {[%emt 0:01:33]} exd4 {[%emt 0:06:33]} 7. cxd4 {[%emt 0:00:07] Strongly threatening d5.} b5 {[%emt 0:00:08]} 8. Bc2 {[%emt 0:00:11] d5 would now be deadly. White is slightly better.} d6 {[%emt 0:01:03]} (8... Bg7 $11) 9. d5 $16 {[%emt 0:02:52]} Ne5 {[%emt 0:01:12]} 10. Nxe5 {[%emt 0:00:20]} dxe5 {[%emt 0:00:03]} 11. Nc3 {[%emt 0:05:11]} Bg7 {[%emt 0:00:32]} 12. h4 {[%emt 0:01:25]} h5 {[%emt 0:04:36]} 13. Bg5 {[%emt 0:02:32]} Qd6 {[%emt 0:02:44]} 14. Rc1 {[%emt 0:07:04]} Bb7 {[%emt 0:02:46] Black is on the road to losing.} 15. Bb3 {[%emt 0:02:15]} O-O {[%emt 0:03:40] [#]} (15... Rb8 $16) 16. g4 $1 $18 {[%emt 0:01:55]} hxg4 {[%emt 0:09:04]} 17. Qxg4 {[%emt 0:02:03] Hoping for h5.} f6 {[%emt 0:23:11][%cal Ob7c8]} 18. Be3 {[%emt 0:03:54][%cal Oc3b5,Bg5e3,Be3c5,Bc5d6,Bd6e7][%mdl 32] Nxb5! is the strong threat.} Kh7 $2 {[%emt 0:00:37]} (18... Bc8 19. Qg2 Kh7) 19. h5 {[%emt 0:01:56][%cal Bh4h5,Bh5h6][%mdl 32]} g5 {[%emt 0:00:17] [#]} 20. h6 $1 {[%emt 0:00:06][%mdl 512] aiming for Nxb5.} Bh8 {[%emt 0:15:14] [#]} 21. Nxb5 $1 {[%emt 0:06:12][%mdl 512]} axb5 {[%emt 0:00:18]} 22. Bc5 {[%emt 0:00:17]} Bc8 {[%emt 0:00:12]} (22... Qd8 $2 23. Bxe7 (23. Qe6 Qe8 $18) 23... Bc8 24. Bxd8 $18) 23. Bxd6 {[%emt 0:00:41]} Bxg4 {[%emt 0:00:06]} 24. Rxc7 {[%emt 0:02:30]} (24. Bxe7 Rfc8 25. Rc3 Bd7 $18) 24... Bf3 {[%emt 0:10:20]} 25. Rh3 {[%emt 0:03:31]} (25. Rxe7+ Kg6 $18) 25... g4 {[%emt 0:01:25]} 26. Rxf3 {[%emt 0:02:42]} (26. Rxe7+ Kg6 27. Rxf3 gxf3 $18) (26. Bxe7 $2 gxh3 27. Bxf8+ Kg6 28. Rg7+ Kh5 $19 (28... Bxg7 $2 29. hxg7 $18)) 26... gxf3 {[%emt 0:00:03]} 27. Bxe7 {[%emt 0:00:17]} Kxh6 {[%emt 0:05:21]} 28. d6 {[%emt 0:06:14]} (28. Bxf8+ Rxf8 29. Rc3 (29. d6 f5 $18) 29... f5 30. Rxf3 b4 $18) 28... f5 {[%emt 0:02:36]} 29. Bd5 {[%emt 0:00:24]} (29. Bxf8+ Rxf8 30. Kd2 fxe4 $18) 29... Rad8 {[%emt 0:01:24]} (29... Rab8 $142 30. Rc6 (30. Bxf8+ Rxf8 31. d7 Bf6 $18) 30... Bf6) 30. exf5 {[%emt 0:09:24][%cal Be4f5,Bf5f6][%mdl 32] Threatens to win with d7.} (30. Bxf8+ Rxf8 31. Kd2 Bf6 $18) 30... e4 $2 {[%emt 0:00:14]} (30... Bf6 31. Bxf3 (31. Bxf8+ Rxf8 32. d7 Kg5 $18) 31... Kg5 32. Bxf8 Rxf8) 31. d7 {[%emt 0:04:19]} Bf6 {[%emt 0:02:03]} 32. Rc6 {[%emt 0:02:19]} Kg5 {[%emt 0:00:24]} 33. Rxf6 {[%emt 0:00:48] White mates.} Rxd7 {[%emt 0:00:11]} 34. Rxf8+ {[%emt 0:00:08]} Rxe7 {[%emt 0:00:07]} 35. f6 {[%emt 0:00:27] Weighted Error Value: White=0.22 (precise) /Black=0.44.  Mistake:       	---       	Black=5      Inaccurate:     	White=1     	Black=1      OK:         	White=10    	Black=7      Best:        	White=3     	Black=3      Strong:       	White=1     	---} 1-0

[Event "ECo-C Extraliga 2023-24"]
[Site "Slovakia"]
[Date "2024.02.25"]
[Round "8.5"]
[White "Zetocha, Claudiu Andrei"]
[Black "Pacher, Milan"]
[Result "0-1"]
[ECO "B12"]
[WhiteElo "2277"]
[BlackElo "2365"]
[Annotator "ChessBase"]
[PlyCount "88"]
[EventDate "2023.10.06"]
[EventType "team-tourn"]
[EventCountry "SVK"]
[SourceTitle "playchess.com"]
[Source "ChessBase"]
[SourceQuality "1"]
[TimeControl "40/5400+30:1800+30"]

1. e4 {[%emt 0:08:23]} c6 {[%emt 0:00:07]} 2. d4 {[%emt 0:00:00]} d5 {[%emt 0:00:04]} 3. f3 {[%emt 0:00:00]} e6 {[%emt 0:00:28]} 4. Nc3 {[%emt 0:00:00]} Bb4 {[%emt 0:00:03]} 5. Bd2 {[%emt 0:00:00]} dxe4 {[%emt 0:02:04]} 6. Nxe4 {[%emt 0:00:10]} Be7 {[%emt 0:00:03]} 7. Bd3 {[%emt 0:18:16]} Qxd4 {[%emt 0:09:58]} 8. Ne2 {[%emt 0:19:19]} Qd8 {[%emt 0:01:18]} 9. Bc3 {[%emt 0:02:19]} Nf6 {[%emt 0:00:04]} 10. N2g3 {[%emt 0:02:27]} Nbd7 {[%emt 0:03:13]} 11. Qe2 {[%emt 0:01:37]} O-O {[%emt 0:02:21]} 12. O-O-O {[%emt 0:09:57]} Nd5 {[%emt 0:03:08]} 13. Bd2 {[%emt 0:01:20]} Ne5 {[%emt 0:01:54]} 14. Nf2 {[%emt 0:06:20]} Nxd3+ {[%emt 0:03:49]} 15. Nxd3 {[%emt 0:00:06]} b5 {[%emt 0:00:31]} 16. h4 {[%emt 0:03:10]} c5 {[%emt 0:05:42]} 17. Nf4 {[%emt 0:03:14]} b4 {[%emt 0:04:30]} 18. h5 {[%emt 0:06:38]} Bd6 {[%emt 0:03:05]} 19. Nxd5 {[%emt 0:03:08]} exd5 {[%emt 0:00:03]} 20. f4 {[%emt 0:00:13]} d4 {[%emt 0:15:45]} 21. Rde1 {[%emt 0:07:48]} Be6 {[%emt 0:02:19]} 22. Ne4 {[%emt 0:00:54]} Bd5 {[%emt 0:01:58]} 23. Nxd6 {[%emt 0:02:12]} Qxd6 {[%emt 0:00:01]} 24. h6 {[%emt 0:00:07]} g6 {[%emt 0:04:18]} 25. Qe5 {[%emt 0:01:28]} Qxe5 {[%emt 0:00:05]} 26. Rxe5 {[%emt 0:00:04]} Rfd8 {[%emt 0:01:06]} 27. Rhe1 {[%emt 0:00:26]} a5 {[%emt 0:01:03]} 28. a3 {[%emt 0:01:11]} f5 {[%emt 0:08:51]} 29. Re7 {[%emt 0:00:59]} Be4 {[%emt 0:00:03]} 30. Rg7+ {[%emt 0:00:32]} Kh8 {[%emt 0:00:01]} 31. g4 {[%emt 0:00:24]} Rg8 {[%emt 0:09:13]} 32. gxf5 {[%emt 0:00:05]} gxf5 {[%emt 0:00:07]} 33. Reg1 {[%emt 0:00:05]} Rxg7 {[%emt 0:00:43]} 34. hxg7+ {[%emt 0:02:34]} Kg8 {[%emt 0:00:02]} 35. Be1 {[%emt 0:01:30]} Ra6 {[%emt 0:01:18]} 36. Rg5 {[%emt 0:01:01]} Rh6 {[%emt 0:00:22]} 37. axb4 {[%emt 0:00:24]} axb4 {[%emt 0:01:24]} 38. Rg1 {[%emt 0:00:38]} Rh2 {[%emt 0:00:16]} 39. Bd2 {[%emt 0:00:13]} c4 {[%emt 0:00:14]} 40. c3 {[%emt 0:00:19]} dxc3 {[%emt 0:00:05]} 41. bxc3 {[%emt 0:30:14]} bxc3 {[%emt 0:30:14]} 42. Be3 {[%emt 0:00:13]} h5 {[%emt 0:02:30]} 43. Kd1 {[%emt 0:00:00]} h4 {[%emt 0:00:00]} 44. Ke1 {[%emt 0:00:00]} c2 {[%emt 0:00:00]} 0-1